Cogmind - Beta 16 @@@ ROGUE MODE // 2026.01.28 @ 18:16:49 Player: Tollhouse Result: Destroyed by X-67 Chaingunner with Minigun Performance ------------- Evolutions (3) 1500 Regions Visited (4) 800 Robots Destroyed (74) 370 Value Destroyed (1983) 1983 Prototype IDs (1) 20 Alien Tech Used (0) 0 Bonus (0) 0 TOTAL SCORE: 4673 Bonus ------- None Cogmind --------- Core Integrity 0/700 Matter 239/450 Energy 17/100 System Corruption 12% Temperature Cool (0) Movement Core (2550) Ox50 Location -7/Factory Parts ------- > --- POWER (2) -------- (None) > --- PROPULSION (3) --- (None) > --- UTILITY (6) ------ Cargo Storage Unit Large Matter Pod Advanced Targeting Computer Recoil Stabilizer Hacking Suite > --- WEAPON (2) ------- Plasma Cannon Assault Rifle > --- INVENTORY (30) --- Heat Sink Cooling System Large Storage Unit Heavy EM Pulse Gun Beam Rifle Particle Gun Advanced Beam Cannon Advanced Beam Cannon Advanced Beam Cannon Peak State ------------ > --- POWER ------------ Ion Engine Ion Engine > --- PROPULSION ------- Medium Treads Medium Treads Medium Treads > --- UTILITY ---------- Cargo Storage Unit High-capacity Battery Improved Sensor Array Improved Targeting Computer Advanced Targeting Computer > --- WEAPON ----------- Advanced Beam Cannon Mace > --- INVENTORY -------- Light Ion Engine Deuterium Engine Light Treads Light Treads Light Treads Light Treads Heat Sink Cooling System Large Storage Unit Large Matter Pod Advanced Targeting Computer Advanced Targeting Computer Advanced Targeting Computer Recoil Stabilizer Light Armor Plating Light Armor Plating Heavy EM Pulse Gun Beam Rifle Particle Gun Advanced Beam Cannon Advanced Beam Cannon Advanced Beam Cannon Plasma Cannon Assault Rifle Heavy Assault Rifle Shotgun High-powered Shotgun Gauss Rifle Grenade Launcher Heavy Hammer [Rating: 36] Favorites ----------- Power Ion Engine Engine Ion Engine Propulsion Light Treads Treads Light Treads Utility High-capacity Battery Device Weight Redist. System Storage High-capacity Battery Processor Improved Targeting Computer Hackware Hacking Suite Protection Light Armor Plating Weapon Assault Rifle Energy Gun Medium Laser Energy Cannon Advanced Beam Cannon Ballistic Gun Assault Rifle Launcher Grenade Launcher Impact Weapon Mace Build | -11 -10 -9 -8 -7 ------- Run | Yrd Mat Mat Mat Fac Slots Evolved 6 | . . 2 2 2 Power 1 | . . . . 1 Propulsion 1 | . . . 1 . Utility 4 | . . 2 1 1 Weapon . | . . . . . Parts Attached 62 | 6 7 10 15 24 Power 8 | 1 1 1 1 4 Engine 8 | 1 1 1 1 4 Core . | . . . . . Reactor . | . . . . . Propulsion 17 | 2 1 2 8 4 Treads 17 | 2 1 2 8 4 Leg . | . . . . . Wheel . | . . . . . Hover . | . . . . . Flight . | . . . . . Utility 21 | 1 3 3 4 10 Device 6 | . . 1 2 3 Storage 6 | 1 3 1 . 1 Processor 5 | . . . 1 4 Hackware 1 | . . . . 1 Protection 3 | . . 1 1 1 Artifact . | . . . . . Weapon 16 | 2 2 4 2 6 Energy Gun 2 | 2 . . . . Energy Cannon 3 | . . . 2 1 Ballistic Gun 7 | . 2 2 . 3 Ballistic Cannon . | . . . . . Launcher 2 | . . 1 . 1 Special Weapon . | . . . . . Impact Weapon 2 | . . 1 . 1 Slashing Weapon . | . . . . . Piercing Weapon . | . . . . . Special Melee Weapon . | . . . . . Unidentified Prototypes . | . . . . . Parts Lost 41 | . 4 6 11 20 Power 7 | . 1 1 1 4 Propulsion 15 | . 1 2 6 6 Utility 8 | . . 1 2 5 Weapon 11 | . 2 2 2 5 Highest Loss Streak 8 | . 3 2 6 8 To Critical Strikes . | . . . . . Average Backups 14 | 1 5 10 19 25 Power 1 | . 1 1 3 . Propulsion . | . . . . 2 Utility 5 | . 2 5 5 8 Weapon 6 | . 1 3 10 13 Tool/Special . | . . . . . Unused Backups 9 | . . 1 . 8 Power . | . . . . . Propulsion . | . . . . . Utility 2 | . . . . 2 Weapon 7 | . . 1 . 6 Tool/Special . | . . . . . Average Slot Usage (%) 85 | . 97 78 87 83 Engine 11 | . 13 10 9 12 Treads 21 | . 28 16 25 20 Device 3 | . . 3 6 4 Storage 22 | . 26 27 18 11 Processor 4 | . . . 3 17 Protection 2 | . . 1 6 1 Energy Gun 1 | . 9 . . . Energy Cannon 2 | . . . 7 5 Ballistic Gun 10 | . 18 16 . 1 Impact Weapon 3 | . . 1 9 5 Peak Build Rating 36 | 6 7 14 19 36 Average Rating 14 | 4 6 9 18 30 On Entrance 9 | . 6 7 13 19 Avg Prop Armor Cover (%) . | . . . . . Naked Turns . | . . . . . Heaviest Build 172 | 12 90 172 158 163 Greatest Support 84 | 40 40 40 66 84 Greatest Overweight (x) 57 | 2 2 57 5 47 Average Overweight (x) 1 | . . 5 2 1 Largest Inventory Capacity 30 | 8 25 30 30 30 Average Capacity 26 | 7 13 30 30 30 Most Carried 30 | 2 9 21 23 30 Average Carried 14 | 1 6 10 19 25 Final Capacity 30 | 8 15 30 30 30 Final Carried 23 | 2 9 21 23 9 Class Distribution -------------------- 78% | Hauler-Mutant 21% | Mutant Dominant Class ---------------- Mutant | -10/Materials Hauler-Mutant | -9/Materials Hauler-Mutant | -8/Materials Hauler-Mutant | -7/Factory Resources | -11 -10 -9 -8 -7 ----------- Run | Yrd Mat Mat Mat Fac Matter Collected 1204 | 242 310 301 165 186 Remotely . | . . . . . Salvage Created 2652 | . 393 876 1054 329 Parts 153 | . 23 50 57 23 Haulers Intercepted 2 | . . 1 1 . Recyclers Shooed 5 | . 1 4 . . Parts Field Recycled . | . . . . . Retrieved Matter . | . . . . . Parts Self-Destructed . | . . . . . Prevented . | . . . . . Parts Restored . | . . . . . Kills | -11 -10 -9 -8 -7 ------- Run | Yrd Mat Mat Mat Fac Combat Hostiles Destroyed 48 | . 10 14 16 8 Melee 3 | . . . 2 1 Guns 21 | . 10 6 . 5 Cannons 14 | . . 1 11 2 AOE 6 | . . 5 1 . Classes Destroyed 14 | . 4 4 4 2 Worker 6 | . . 2 4 . Builder 6 | . 1 2 2 1 Hauler 2 | . . 1 1 . Recycler 6 | . 1 2 3 . Operator 3 | . . . 2 1 Watcher 3 | . . 3 . . Swarmer 7 | . 3 . 4 . Cutter 2 | . . . . 2 Grunt 25 | . 7 10 5 3 Brawler 1 | . . . 1 . Duelist 1 | . . . 1 . Sentry 8 | . . 4 4 . Hunter 1 | . . . 1 . Programmer 3 | . . . . 3 Best Kill Streak 5 | . 4 5 5 3 Combat Bots Only 5 | . 4 5 3 3 Max Kills in Single Turn 2 | . 1 2 1 1 Gunslinging . | . . . . . Exploded 2 | . . 2 1 . Melee 1 | . . . 1 1 Uniques/NPCs Destroyed . | . . . . . Combat | -11 -10 -9 -8 -7 -------- Run | Yrd Mat Mat Mat Fac Hostile Shots Fired 572 | . 116 114 130 212 Missed 132 | . 39 24 30 39 Hits 440 | . 77 90 100 173 Melee 33 | . . . 4 29 Projectile 407 | . 77 90 96 144 Critical Strikes 23 | . 2 1 6 14 Part Disruptions 1 | . . . . 1 Damage Taken 6454 | . 877 1187 1472 2918 Core 1340 | . 194 212 226 708 Absorbed by Shields 64 | . . 64 . . Core Remaining (%) 56 | 100 22 47 58 . Volleys Fired 229 | . 54 67 58 50 Largest 2 | . 2 2 1 2 Hottest 100 | . 90 43 68 100 Shots Fired 301 | . 100 84 58 59 Gun 218 | . 100 80 . 38 Cannon 73 | . . . 53 20 Launcher 10 | . . 4 5 1 Special . | . . . . . Kinetic 174 | . 56 80 . 38 Thermal 107 | . 34 . 53 20 Explosive 10 | . . 4 5 1 Electromagnetic 10 | . 10 . . . Robot Hit Streak 13 | . 11 13 12 12 Robot Miss Streak 5 | . 5 3 4 4 Penetration Max . | . . . . . Secondary Targets 3 | . 2 . . 1 Max Gunslinging Chain 1 | . 1 . . 1 Shots Hit Robots 230 | . 53 72 51 54 Core Hits 102 | . 24 37 25 16 Critical Kills 1 | . . 1 . . Critical Parts Destroyed 7 | . . . 4 3 Critical Strikes 10 | . 2 1 4 3 Burn 2 | . 2 . . . Destroy 2 | . . 1 . 1 Smash 6 | . . . 4 2 Melee Attacks 48 | . . 7 18 23 Impact 48 | . . 7 18 23 Slashing . | . . . . . Piercing . | . . . . . Sneak Attacks 8 | . . . 8 . Combat Hostiles . | . . . . . Follow-up Attacks . | . . . . . Damage Inflicted 4721 | . 626 1211 1590 1294 Guns 1744 | . 591 696 . 457 Cannons 1087 | . . . 719 368 Explosions 584 | . . 330 192 62 Melee 1248 | . . 166 679 403 Ramming 58 | . 35 19 . 4 Kinetic 1457 | . 304 696 . 457 Thermal 1350 | . 263 . 719 368 Explosive 584 | . . 330 192 62 Electromagnetic 24 | . 24 . . . Impact 1248 | . . 166 679 403 Slashing . | . . . . . Piercing . | . . . . . Highest Corruption 12 | . 3 . . 12 Average Corruption 5 | . 2 . . 8 Corruption Purged . | . . . . . Corruption Blocked . | . . . . . Effects 54 | . 16 . . 38 Message Errors 19 | . 5 . . 14 Matter Fused 6 | . 3 . . 3 Heat Flow Errors 6 | . 2 . . 4 Energy Discharges 7 | . 3 . . 4 Data Loss (minor) 8 | . 2 . . 6 Data Loss (major) 2 | . . . . 2 Misfires 3 | . 1 . . 2 Alerts 2 | . . . . 2 Weapon Failures 1 | . . . . 1 Overload Shots . | . . . . . Overflow Damage 359 | . . 14 264 81 Projectiles . | . . . . . Explosions 21 | . . . 21 . Melee 338 | . . 14 243 81 Knockbacks 9 | . 1 3 4 1 Impact 8 | . 1 2 4 1 Kinetic . | . . . . . Secondary 1 | . . 1 . . Self-Inflicted Damage 219 | . . 100 80 39 Shots 8 | . . 3 4 1 Rammed 10 | . 4 5 . 1 Targets Rammed 13 | . 5 6 . 2 Kicked . | . . . . . Crushed 3 | . 1 1 . 1 Highest Temperature 399 | . 261 24 223 399 Average Temperature 82 | . 65 5 60 150 Received Heat Transfer 1888 | . 429 478 468 513 Effects 4 | . . . . 4 Shutdowns 1 | . . . . 1 Interference 3 | . . . . 3 Siege Activations . | . . . . . Martial Activations . | . . . . . Shielding Activations . | . . . . . Robots Disrupted . | . . . . . Combat Hostiles . | . . . . . Robots Corrupted 9 | . . 2 7 . Combat Hostiles 4 | . . 2 2 . Parts Fried 11 | . . 1 10 . Impact Corruptions 20 | . . 2 14 4 Robots Melted . | . . . . . Combat Hostiles . | . . . . . Parts Melted 3 | . . . 2 1 Heat Transferred 2825 | . 925 . 1295 605 Parts Sabotaged . | . . . . . Parts Stolen . | . . . . . Parts Stripped . | . . . . . Power Chain Reactions . | . . . . . Alert | -11 -10 -9 -8 -7 ------- Run | Yrd Mat Mat Mat Fac Maximum Alert Level 1 | . . 1 . . Low Security (%) 99 | 100 100 97 100 100 Level 1 . | . . 2 . . Level 2 . | . . . . . Level 3 . | . . . . . Level 4 . | . . . . . Level 5 . | . . . . . High Security . | . . . . . Max Security . | . . . . . Peak Influence 203 | . 95 203 170 79 Initial 83 | . . . 83 . Average 26 | . 13 20 71 9 Influence Increases 1516 | . 266 458 551 241 Destroy 0b10 Robot/C 960 | . 200 280 320 160 Destroy 0b10 Robot/NC 130 | . 10 50 60 10 Destroy Leader 260 | . 40 88 82 50 Disable Machine 30 | . . . 15 15 Destroy Structure 61 | . 1 25 29 6 Lose Combat Pursuer 75 | . 15 15 45 . Influence Decreases 1497 | . 266 259 750 222 Entered New Map 116 | . . . 116 . Time Decay 1132 | . 256 221 524 131 Lost Part 249 | . 10 38 110 91 Squads Dispatched 11 | . 1 3 1 6 Investigation 4 | . 1 3 . . Extermination 3 | . . . . 3 Reinforcement 4 | . . . 1 3 Assault . | . . . . . Garrison . | . . . . . Intercept . | . . . . . Searches Triggered . | . . . . . Construction Impeded . | . . . . . Haulers Reinforced . | . . . . . Active Scanning Responses . | . . . . . Cargo Convoy Interrupts . | . . . . . Stealth | -11 -10 -9 -8 -7 --------- Run | Yrd Mat Mat Mat Fac Distress Signals 5 | . 1 3 1 . Communications Jammed . | . . . . . Distress Signals . | . . . . . Times Spotted 82 | . 23 25 23 11 Peak Tracking Total 6 | . 6 5 5 4 Tactical Retreats 4 | . 1 1 2 . Traps | -11 -10 -9 -8 -7 ------- Run | Yrd Mat Mat Mat Fac Traps Triggered 6 | . 4 2 . . Indirectly . | . . . . . Trap Hack Attempts . | . . . . . Triggered . | . . . . . Disarmed . | . . . . . Reprogrammed . | . . . . . Reused . | . . . . . Traps Extracted . | . . . . . Installed . | . . . . . Triggered . | . . . . . Machines | -11 -10 -9 -8 -7 ---------- Run | Yrd Mat Mat Mat Fac Machines Disabled 2 | . . . 1 1 Max in Single Turn 1 | . . . 1 1 Machines Repaired . | . . . . . Machines Dismantled . | . . . . . Machines Sabotaged . | . . . . . Overloaded Fab Kills . | . . . . . Hacking | -11 -10 -9 -8 -7 --------- Run | Yrd Mat Mat Mat Fac Machines Accessed 1 | . . 1 . . Terminals . | . . . . . Fabricators . | . . . . . Repair Stations . | . . . . . Recycling Units . | . . . . . Scanalyzers 1 | . . 1 . . Garrison Access . | . . . . . Total Hacks 3 | . . 3 . . Successful 3 | . . 3 . . Failed . | . . . . . Catastrophic . | . . . . . Database Lockouts . | . . . . . Manual . | . . . . . Terminals . | . . . . . Fabricators . | . . . . . Repair Stations . | . . . . . Recycling Units . | . . . . . Scanalyzers 3 | . . 3 . . Garrison Access . | . . . . . Terminal Hacks . | . . . . . Fabricator Hacks . | . . . . . Repair Station Hacks . | . . . . . Recycling Unit Hacks . | . . . . . Scanalyzer 3 | . . 3 . . Insert Component 1 | . . 1 . . Analyze 2 | . . 2 . . Garrison Access Hacks . | . . . . . Unauthorized Hacks . | . . . . . Terminals . | . . . . . Fabricators . | . . . . . Repair Stations . | . . . . . Recycling Units . | . . . . . Scanalyzers . | . . . . . Garrison Access . | . . . . . Data Cores Recovered . | . . . . . Used . | . . . . . Hacking Detections 1 | . . 1 . . Full Trace Events 1 | . . 1 . . Feedback Events . | . . . . . Feedback Blocked . | . . . . . Robot Schematics Acquired . | . . . . . Robots Built . | . . . . . Authchips . | . . . . . Time . | . . . . . Total Robot Build Rating . | . . . . . Part Schematics Acquired 1 | . . 1 . . Parts Built . | . . . . . Authchips . | . . . . . Time . | . . . . . Total Part Build Rating . | . . . . . Part Studies Acquired . | . . . . . Parts Repaired . | . . . . . Time . | . . . . . Parts Recycled . | . . . . . Recycled Matter . | . . . . . Retrieved Matter . | . . . . . Retrieved Components . | . . . . . Parts Scanalyzed 1 | . . 1 . . Part Schematics Acquired 1 | . . 1 . . Parts Damaged . | . . . . . Bothacking | -11 -10 -9 -8 -7 ------------ Run | Yrd Mat Mat Mat Fac Used RIF Installer . | . . . . . Robots Hacked . | . . . . . Non-combat . | . . . . . Combat . | . . . . . Robot Hacks Applied . | . . . . . Relay Couplers Released . | . . . . . Fabnet Peak Effective % . | . . . . . Robots Rewired . | . . . . . Allies Hacked . | . . . . . Hacks Repelled . | . . . . . Allies | -11 -10 -9 -8 -7 -------- Run | Yrd Mat Mat Mat Fac Total Allies . | . . . . . Largest Group . | . . . . . Highest-Rated Group . | . . . . . Highest-Rated Ally . | . . . . . Total Orders . | . . . . . Ally Attacks . | . . . . . Total Damage . | . . . . . Kills . | . . . . . Allies Corrupted . | . . . . . Allies Melted . | . . . . . Intel | -11 -10 -9 -8 -7 ------- Run | Yrd Mat Mat Mat Fac Active Infowar (turns) 931 | . . . . 931 Sensors 931 | . . . . 931 Robot Analysis Total . | . . . . . Derelict Logs Recovered . | . . . . . Drone Launches . | . . . . . Drone Recoveries . | . . . . . Exploration | -11 -10 -9 -8 -7 ------------- Run | Yrd Mat Mat Mat Fac Turns Passed 7947 | 85 1598 3140 1583 1541 Spaces Moved 2338 | 53 877 533 420 455 Core 24 | 14 . 9 . 1 Treads 2314 | 39 877 524 420 454 Legs . | . . . . . Wheels . | . . . . . Hover . | . . . . . Flight . | . . . . . Fastest Speed 50 | 50 160 400 320 240 Average Speed 303 | 142 162 548 330 284 Slowest Speed 2900 | 160 320 2900 560 2400 Overloaded Moves . | . . . . . Propulsion Burnouts . | . . . . . Robots Hopped . | . . . . . Potential Cave-ins . | . . . . . Cave-ins Triggered . | . . . . . Exploration Rate (%) 37 | 4 98 48 27 12 Regions Visited 4 Branch Regions . Pre-discovered Areas . | . . . . . Known Exits Taken . | . . . . . Unknown Exits Taken 4 | 1 1 1 1 . Scrap Searched . | . . . . . Spaces Dug . | . . . . . Terrain Destroyed 63 | . . 33 26 4 Melee . | . . . . . Projectile . | . . . . . AOE 63 | . . 33 26 4 Terrain Rammed . | . . . . . Walls Destroyed . | . . . . . Machines Disabled . | . . . . . Actions | -11 -10 -9 -8 -7 --------- Run | Yrd Mat Mat Mat Fac Total 2762 | 60 959 644 525 574 Wait 4 | . 3 . . 1 Move 2334 | 52 876 532 419 455 Hop . | . . . . . Pick Up 49 | 2 10 18 13 6 Fast Attach 23 | 6 3 3 4 7 Attach 47 | . 4 7 11 25 Detach 10 | . 2 3 1 4 Swap 1 | . . . . 1 Drop 4 | . 2 1 1 . Fire 229 | . 54 67 58 50 Melee 48 | . . 7 18 23 Ram 1 | . . . . 1 Kick . | . . . . . Crush 12 | . 5 6 . 1 Escape Stasis . | . . . . . Rewire . | . . . . . Trap . | . . . . . Miscellaneous . | . . . . . Route ------- -11/Scrapyard -10/Materials (discovered 4 exits: *Mat x3 / [*Min]) -9/Materials (discovered 4 exits: [*Mat x2] / [*Min] / [*Sto]) -8/Materials -7/Factory History --------- Turn | Location | Event 17 | -11/Scrapyard | Discovered new exit (range 15) 86 | -11/Scrapyard | Entered Materials 323 | -10/Materials | Build established: Mutant 354 | -10/Materials | Discovered new exit (range 13) 561 | -10/Materials | Discovered new exit (range 16) 635 | -10/Materials | Discovered new exit (range 14) 795 | -10/Materials | Discovered new exit (range 5) 806 | -10/Materials | Core integrity fell below 50% 846 | -10/Materials | Lost 3 parts (1p1n1w) 1684 | -10/Materials | Entered another Materials area 1684 | -9/Materials | Evolved 2 slots: Utility x2 1971 | -9/Materials | Build established: Hauler-Mutant 2774 | -9/Materials | Discovered new exit (range 5) 2822 | -9/Materials | Discovered new exit (range 14) 3964 | -9/Materials | Discovered new exit (range 5) 4538 | -9/Materials | Core integrity fell below 50% 4742 | -9/Materials | Discovered new exit (range 5) 4824 | -9/Materials | Entered another Materials area 4824 | -8/Materials | Evolved 2 slots: Propulsion x1, Utility x1 5027 | -8/Materials | Lost 4 parts (2n1u1w) 5327 | -8/Materials | Lost 6 parts (1p3n1u1w) 5445 | -8/Materials | Discovered new exit (range 16) 6407 | -8/Materials | Entered Factory 6407 | -7/Factory | Evolved 2 slots: Power x1, Utility x1 7238 | -7/Factory | System corruption reached 10% 7717 | -7/Factory | Lost 8 parts (2p3n1u2w) 7823 | -7/Factory | Core integrity fell below 50% 7847 | -7/Factory | Core integrity fell below 20% 7948 | -7/Factory | Destroyed by X-67 Chaingunner with Minigun Last Messages --------------- R-06 Scavenger collects Terrain Scanner. R-06 Scavenger collects Lgt. Deuterium Engine. K-01 Serf collects debris. Lgt. Treads destroyed. Lgt. Armor Plating destroyed. Acquired Lgt. Treads. Fusion Modulator explodes. H-61 Shepherd destroyed. Fusion Modulator explodes. X-67 Chaingunner destroyed. Terminal disabled. K-01 Serf collects debris. Shotgun destroyed. System corrupted: Component data lost. System Restoration Module destroyed. Hvy. Assault Rifle destroyed. P-60 Hacker destroyed. Lgt. Treads destroyed. K-01 Serf collects debris. &DQALXG2 ADQ|%DF|D/KRA#0/UAVQ Map ----- +----------------------------------------------------+ | ?????????????????????????????????????????????????? | | ?????????????????????????????????????????????????? | | ?????????????????????????????????????????????????? | | ?????????????????????????????????????????????????? | | ?????????????????????????????????????????????????? | | ???????????????????????????????????????#####+##### | | ???????????????????????????????????????# | | ???????????????????????????????????????# | | ???????????????????????????????????????# " | | ?????????????????????????????########### "" | | ??????????????????????? ###??# # "" | | ????????????????????? ;;### """ # | | ?????????????????? # "Y =# "" | | ????????????????k # """ "" # "" | | ?????????????? # "" # "" | | ?????????????? # ! """ # | | ????????????? # """ # "" | | ????????????? ! # [ """ + "" | | ???????????? ] " # # "" | | ????????????? # "" "" # | | ??????????????? ;*=% # "" "" # " "" | | ?????????????????! " # """ """ # " "" | | ??????????????????? " #?""" """ # """ "" | | ????????????????????? x / *] #??"" """ # | | ????????????????#;;;;;#*/%#|##?? # """ "" | | ??????????????""T""" =%]@=%[#?? # """ "" | | ???????????# = =/%!########### """ "" | | ???????????? """"""" """""""|+ | | ????????????????"""" """"""" ######## """ "" | | ???????????????""""" """"""" #??????# """ "" | | ???????????????""""" """"""" #??????# """ "" | | ???????????# #??????# | | ?????????????????##"######+########## | | ??????????????????# [ = | | ??????????????????# ! = | | ??????????????????# = ### | | ??????????????????# #?# | | ??????????????????# #?? | | ??????????????????# #?? | | ??????????????????# #?? | | ??????????????????#######+#########+############?? | | ????????????????????????????????# #### | | ????????????????????????????????# + | | ????????????????????????????????# """ """ """ #### | | ????????????????????????????????# """ """ """ #??? | | ????????????????????????????????# """ """ """ #??? | | ????????????????????????????????# #??? | | ????????????????????????????????# """ """ """ #??? | | ????????????????????????????????# """ """ """ #??? | | ????????????????????????????????# """ """ """ #??? | +----------------------------------------------------+ Best States ------------- Heat Dissipation 34 Energy Generation 19 Energy Capacity 650 Matter Stores 300 Matter Capacity 300 Sight Range 16 Robot Scan Range 15 Terrain Scan Density 10 Additional Mass Support 6 Armor Coverage 300 Evasion (%) 40 Targeting Accuracy 30 Recoil Reduction 3 Item Schematics ----------------- Adv. Beam Cannon | -9/Materials | Scanalyzed Robot Schematics ------------------ None Fabricated ------------ Nothing Repaired ---------- Nothing Studied --------- None Alien Tech Used ----------------- None Achievements -------------- Hey, That's Mine! Packrat Tank Challenges ------------ None Game ------ Seed SpliceGatlingProcessor Manual? 0 Play Time 00:30:31 Cumulative 4.2 hours Start 2026.01.28 @ 11:48:43 End 2026.01.28 @ 18:16:49 Sessions 1 Manual Loads 0 Difficulty Rogue Special Mode None Game No. 10 Rogue 10 Adventurer 0 Explorer 0 Win Type - Total 0 Types 0/0/0/0/0/0/0/0/0/0 Lore% 0 Gallery% 9 Achievement% 8 Wizard Run 0 Options --------- Layout 1 ASCII 0 Keyboard 1 Movement Vi Keybinds 0 Fullscreen 1 Font 24/Smallcaps Map View 50x40 Zoom Use 0% Tactical HUD 0 Map Filters NONE Filters NONE Steam 0 RUN: fad746f9-1afd-4cb5-bc93-68dc23228d12